Cogmind - Beta 14 @@@ ROGUE MODE // 2024.12.21 @ 20:50:44 Player: blackdogzx Result: Destroyed by G-34 Mercenary with Small Laser Performance ------------- Evolutions (0) 0 Regions Visited (2) 400 Robots Destroyed (15) 75 Value Destroyed (302) 302 Prototype IDs (0) 0 Alien Tech Used (0) 0 Bonus (21) 21 TOTAL SCORE: 798 Bonus ------- Follower Combat Kills 21 Cogmind --------- Core Integrity 0/250 Matter 290/300 Energy 84/100 System Corruption 0% Temperature Cool (30) Movement Core (50) Location -10/Mines Parts ------- > --- POWER (1) -------- (None) > --- PROPULSION (2) --- (None) > --- UTILITY (2) ------ Targeting Computer > --- WEAPON (2) ------- Medium Laser > --- INVENTORY (5) ---- Light Ion Engine Light Nuclear Core Small Storage Unit Peak State ------------ > --- POWER ------------ Light Nuclear Core > --- PROPULSION ------- Aluminum Leg Aluminum Leg > --- UTILITY ---------- Small Storage Unit Signal Interpreter > --- WEAPON ----------- Light Assault Rifle Light Cannon > --- INVENTORY -------- Ion Engine Light Ion Engine [Rating: 9] Favorites ----------- Power Light Nuclear Core Engine Ion Engine Power Core Light Nuclear Core Propulsion Aluminum Leg Leg Aluminum Leg Utility Signal Interpreter Storage Small Storage Unit Processor Signal Interpreter Weapon Light Cannon Energy Gun Medium Laser Ballistic Gun Light Assault Rifle Ballistic Cannon Light Cannon Launcher Grenade Launcher Build | -11 -10 -10 ------- Run | Yrd Mat Min Slots Evolved . | . . . Power . | . . . Propulsion . | . . . Utility . | . . . Weapon . | . . . Parts Attached 12 | 5 6 1 Power 2 | 1 1 . Engine 1 | 1 . . Core 1 | . 1 . Reactor . | . . . Propulsion 3 | 2 1 . Treads . | . . . Leg 3 | 2 1 . Wheel . | . . . Hover . | . . . Flight . | . . . Utility 3 | 1 2 . Device . | . . . Storage 1 | 1 . . Processor 2 | . 2 . Hackware . | . . . Protection . | . . . Artifact . | . . . Weapon 4 | 1 2 1 Energy Gun 1 | . . 1 Energy Cannon . | . . . Ballistic Gun 1 | 1 . . Ballistic Cannon 1 | . 1 . Launcher 1 | . 1 . Special Weapon . | . . . Impact Weapon . | . . . Slashing Weapon . | . . . Piercing Weapon . | . . . Special Melee Weapon . | . . . Unidentified Prototypes . | . . . Parts Lost 7 | . 3 4 Power 1 | . . 1 Propulsion 3 | . 2 1 Utility 1 | . . 1 Weapon 2 | . 1 1 Highest Loss Streak 4 | . 2 4 To Critical Strikes . | . . . Average Slot Usage (%) 70 | . 74 61 Engine 4 | . 5 . Core 9 | . 8 12 Leg 19 | . 22 10 Storage 6 | . 9 . Processor 17 | . 13 26 Ballistic Gun 4 | . 6 . Ballistic Cannon 8 | . 7 10 Peak Build Rating 9 | 5 9 7 Average Rating 6 | 4 6 6 On Entrance 4 | . 5 7 Naked Turns . | . . . Heaviest Build 14 | 11 14 8 Greatest Support 20 | 20 20 10 Greatest Overweight (x) 4 | 3 4 1 Average Overweight (x) . | . . . Largest Inventory Capacity 8 | 8 8 5 Average Capacity 6 | 7 6 5 Most Carried 3 | 1 3 3 Average Carried 1 | . 1 3 Final Capacity 8 | 8 5 5 Final Carried 3 | 1 3 3 Class Distribution -------------------- 100% | Mutant Dominant Class ---------------- Mutant | -10/Materials Mutant | -10/Mines Resources | -11 -10 -10 ----------- Run | Yrd Mat Min Matter Collected 453 | 224 200 29 Remotely . | . . . Salvage Created 353 | . 251 102 Parts 28 | . 24 4 Haulers Intercepted . | . . . Recyclers Shooed 1 | . 1 . Parts Field Recycled . | . . . Retrieved Matter . | . . . Parts Self-Destructed . | . . . Prevented . | . . . Kills | -11 -10 -10 ------- Run | Yrd Mat Min Combat Hostiles Destroyed 14 | . 11 3 Guns 9 | . 7 2 Cannons 4 | . 3 1 AOE 1 | . 1 . Classes Destroyed 3 | . 2 1 Recycler 1 | . . 1 Swarmer 9 | . 6 3 Grunt 5 | . 5 . Best Kill Streak 3 | . 3 2 Combat Bots Only 3 | . 3 2 Max Kills in Single Turn 1 | . 1 1 Gunslinging . | . . . Exploded 1 | . 1 . Melee . | . . . Uniques/NPCs Destroyed . | . . . Combat | -11 -10 -10 -------- Run | Yrd Mat Min Hostile Shots Fired 133 | . 84 49 Missed 36 | . 24 12 Damage Taken 970 | . 665 305 Core 250 | . 112 138 Absorbed by Shields . | . . . Core Remaining (%) 100 | 100 . . Volleys Fired 65 | . 46 19 Largest 2 | . 2 1 Hottest 50 | . 50 50 Shots Fired 68 | . 49 19 Gun 35 | . 27 8 Cannon 30 | . 19 11 Launcher 3 | . 3 . Special . | . . . Kinetic 57 | . 46 11 Thermal 8 | . . 8 Explosive 3 | . 3 . Electromagnetic . | . . . Robot Hit Streak 5 | . 5 3 Robot Miss Streak 5 | . 4 5 Penetration Max . | . . . Secondary Targets . | . . . Shots Hit Robots 36 | . 27 9 Core Hits 26 | . 22 4 Critical Kills . | . . . Critical Parts Destroyed . | . . . Critical Strikes . | . . . Melee Attacks . | . . . Impact . | . . . Slashing . | . . . Piercing . | . . . Sneak Attacks . | . . . Combat Hostiles . | . . . Follow-up Attacks . | . . . Damage Inflicted 751 | . 567 184 Guns 203 | . 130 73 Cannons 356 | . 248 108 Explosions 186 | . 186 . Melee . | . . . Ramming 6 | . 3 3 Kinetic 486 | . 378 108 Thermal 73 | . . 73 Explosive 186 | . 186 . Electromagnetic . | . . . Impact . | . . . Slashing . | . . . Piercing . | . . . Highest Corruption . | . . . Average Corruption . | . . . Corruption Purged . | . . . Corruption Blocked . | . . . Overload Shots . | . . . Overflow Damage 15 | . . 15 Projectiles 15 | . . 15 Explosions . | . . . Melee . | . . . Knockbacks 5 | . 3 2 Impact . | . . . Kinetic 4 | . 2 2 Secondary 1 | . 1 . Self-Inflicted Damage . | . . . Shots . | . . . Rammed . | . . . Targets Rammed 2 | . 1 1 Kicked 2 | . 1 1 Crushed . | . . . Highest Temperature 37 | . 37 24 Average Temperature 15 | . 15 14 Received Heat Transfer 369 | . 339 30 Siege Activations . | . . . Robots Corrupted . | . . . Combat Hostiles . | . . . Parts Fried . | . . . Impact Corruptions . | . . . Robots Melted . | . . . Combat Hostiles . | . . . Parts Melted . | . . . Heat Transferred 222 | . . 222 Parts Sabotaged . | . . . Parts Stolen . | . . . Parts Stripped . | . . . Power Chain Reactions . | . . . Alert | -11 -10 -10 ------- Run | Yrd Mat Min Peak Influence 289 | . 289 138 Initial 60 | . . 60 Average 126 | . 148 108 Maximum Alert Level 1 | . 1 . Low Security (%) 78 | 100 68 100 Level 1 21 | . 31 . Level 2 . | . . . Level 3 . | . . . Level 4 . | . . . Level 5 . | . . . High Security . | . . . Max Security . | . . . Squads Dispatched 1 | . 1 . Investigation 1 | . 1 . Extermination . | . . . Reinforcement . | . . . Assault . | . . . Garrison . | . . . Intercept . | . . . Searches Triggered . | . . . Construction Impeded . | . . . Haulers Reinforced . | . . . Active Scanning Responses . | . . . Cargo Convoy Interrupts . | . . . Stealth | -11 -10 -10 --------- Run | Yrd Mat Min Distress Signals 1 | . 1 . Communications Jammed . | . . . Distress Signals . | . . . Times Spotted 25 | . 17 8 Peak Tracking Total 6 | . 6 4 Tactical Retreats . | . . . Traps | -11 -10 -10 ------- Run | Yrd Mat Min Traps Triggered 1 | . 1 . Indirectly . | . . . Trap Hack Attempts . | . . . Triggered . | . . . Disarmed . | . . . Reprogrammed . | . . . Reused . | . . . Traps Extracted . | . . . Installed . | . . . Triggered . | . . . Machines | -11 -10 -10 ---------- Run | Yrd Mat Min Machines Disabled 1 | . 1 . Max in Single Turn 1 | . 1 . Machines Repaired . | . . . Machines Dismantled . | . . . Machines Sabotaged . | . . . Overloaded Fab Kills . | . . . Hacking | -11 -10 -10 --------- Run | Yrd Mat Min Machines Accessed . | . . . Terminals . | . . . Fabricators . | . . . Repair Stations . | . . . Recycling Units . | . . . Scanalyzers . | . . . Garrison Access . | . . . Total Hacks . | . . . Successful . | . . . Failed . | . . . Catastrophic . | . . . Database Lockouts . | . . . Manual . | . . . Terminals . | . . . Fabricators . | . . . Repair Stations . | . . . Recycling Units . | . . . Scanalyzers . | . . . Garrison Access . | . . . Terminal Hacks . | . . . Fabricator Hacks . | . . . Repair Station Hacks . | . . . Recycling Unit Hacks . | . . . Scanalyzer . | . . . Garrison Access Hacks . | . . . Unauthorized Hacks . | . . . Terminals . | . . . Fabricators . | . . . Repair Stations . | . . . Recycling Units . | . . . Scanalyzers . | . . . Garrison Access . | . . . Data Cores Recovered . | . . . Used . | . . . Hacking Detections . | . . . Full Trace Events . | . . . Feedback Events . | . . . Feedback Blocked . | . . . Robot Schematics Acquired . | . . . Robots Built . | . . . Authchips . | . . . Time . | . . . Total Robot Build Rating . | . . . Part Schematics Acquired . | . . . Parts Built . | . . . Authchips . | . . . Time . | . . . Total Part Build Rating . | . . . Parts Repaired . | . . . Time . | . . . Parts Recycled . | . . . Recycled Matter . | . . . Retrieved Matter . | . . . Retrieved Components . | . . . Parts Scanalyzed . | . . . Part Schematics Acquired . | . . . Parts Damaged . | . . . Bothacking | -11 -10 -10 ------------ Run | Yrd Mat Min Used RIF Installer . | . . . Robots Hacked . | . . . Non-combat . | . . . Combat . | . . . Robot Hacks Applied . | . . . Relay Couplers Released . | . . . Fabnet Peak Effective % . | . . . Robots Rewired . | . . . Allies Hacked . | . . . Hacks Repelled . | . . . Allies | -11 -10 -10 -------- Run | Yrd Mat Min Total Allies 2 | . . 2 Largest Group 2 | . . 2 Highest-Rated Group 45 | . . 45 Highest-Rated Ally 31 | . . 31 Total Orders . | . . . Ally Attacks 13 | . . 13 Total Damage 164 | . . 164 Kills 3 | . . 3 Allies Corrupted . | . . . Allies Melted . | . . . Intel | -11 -10 -10 ------- Run | Yrd Mat Min Robot Analysis Total . | . . . Derelict Logs Recovered 1 | . . 1 Drone Launches . | . . . Drone Recoveries . | . . . Exploration | -11 -10 -10 ------------- Run | Yrd Mat Min Turns Passed 852 | 67 567 218 Spaces Moved 553 | 50 355 148 Core 55 | 10 3 42 Treads . | . . . Legs 498 | 40 352 106 Wheels . | . . . Hover . | . . . Flight . | . . . Fastest Speed 50 | 50 120 50 Average Speed 115 | 117 120 103 Slowest Speed 250 | 200 250 120 Overloaded Moves . | . . . Propulsion Burnouts . | . . . Robots Hopped . | . . . Cave-ins Triggered . | . . . Exploration Rate (%) 27 | 4 47 31 Regions Visited 2 Branch Regions 1 Pre-discovered Areas . | . . . Known Exits Taken 1 | . 1 . Unknown Exits Taken 1 | 1 . . Scrap Searched 1 | . . 1 Spaces Dug . | . . . Terrain Destroyed 18 | . 18 . Melee . | . . . Projectile . | . . . AOE 18 | . 18 . Terrain Rammed . | . . . Walls Destroyed . | . . . Machines Disabled . | . . . Actions | -11 -10 -10 --------- Run | Yrd Mat Min Total 699 | 55 451 193 Wait 58 | . 34 24 Move 551 | 49 354 148 Hop . | . . . Pick Up 5 | 1 4 . Fast Attach 10 | 5 4 1 Attach 1 | . 1 . Detach 2 | . 2 . Swap 1 | . 1 . Drop 4 | . 4 . Fire 65 | . 46 19 Melee . | . . . Ram . | . . . Kick 2 | . 1 1 Crush . | . . . Escape Stasis . | . . . Rewire . | . . . Trap . | . . . Miscellaneous . | . . . Route ------- -11/Scrapyard -10/Materials (discovered 2 exits: *Mat / *Min) -10/Mines (discovered 1 exit: *Mat) History --------- Turn | Location | Event 11 | -11/Scrapyard | Discovered new exit (range 16) 68 | -11/Scrapyard | Entered Materials 308 | -10/Materials | Build established: Mutant 315 | -10/Materials | Discovered new exit (range 15) 339 | -10/Materials | Identified exit to Materials 474 | -10/Materials | Discovered new exit (range 16) 634 | -10/Materials | Identified exit to Mines 635 | -10/Materials | Entered Mines 669 | -10/Mines | Learned location of 1 exit from Materials 769 | -10/Mines | Discovered exit to Materials (range 8) 791 | -10/Mines | Core integrity fell below 50% 835 | -10/Mines | Core integrity fell below 20% 853 | -10/Mines | Destroyed by G-34 Mercenary with Small Laser Last Messages --------------- 00805_ K-01 Serf collects debris. 00805_ R-06 Scavenger collects Mak. Power Source. 00806_ Destroyed Flight Unit. 00808_ S-10 Pest destroyed. 00809_ Lgt. Cannon destroyed. 00812_ K-01 Serf collects debris. 00813_ Acquired 2 matter. 00821_ Lgt. Nuclear Core destroyed. 00834_ Searching scrap... 00834_ Found Signal Interpreter. 00834_ Found Med. Laser. 00834_ Found Assault Rifle. 00834_ Found 47 Matter. 00835_ Acquired 27 matter. 00835_ Signal Interpreter destroyed. 00836_ Acquired Med. Laser. 00838_ S-10 Pest destroyed. 00845_ K-01 Serf collects debris. 00850_ S-10 Pest destroyed. Map ----- +----------------------------------------------------+ | ?????????????????????????????????????????????????? | | ?????????????????????????????????????????????????? | | ?????????????????????????????????????????????????? | | ??????????????????????????????????# ???????????? | | ??###### #???????????????????????? #???????????? | | ### #??????????????????????? ????????????? | | % #??????????????????????????? ?????????????? | | ### #??????????????????????????# #?????????????? | | ??# #?????????????????????????# #?????????????? | | ??#% ###??????????????????????# #??????????????? | | ??#! ##????????????????????? #???????????????? | | ?## % #???????????????????## #???????????????? | | ## < #????????????????#### #???????????????? | | # %= %##???????????????## #???????????????? | | # *=%###????????????????# #????????????????? | | ####!#??????????????????# #????????????????? | | ???# #######???????????## """ ##????????????????? | | ???# #??????????## g""" #?????????????????? | | ?### ############# """ #?????????????????? | | ## ##?????????????????? | | # # ###??????????????????? | | # ############ #% ###????????????????????? | | # #??????????# % #??????????????????????? | | ## ### #??????????# ![#??????????????????????? | | ?###??# #??????????#####%#??????????????????????? | | ??????# #??????????????#@#??????????????????????? | | ?????? ??????????????# #??????????????????????? | | ?????? ??????????????# #??????????????????????? | | ?????? ????????????? #??????????????????????? | | ????? #?????????????###??????????????????????? | | ????? #??????????????????????????????????????? | | ????? #??????????????????????????????????????? | | ????? #??????????????????????????????????????? | | ????######???????????????????????????????????????? | | ?????????????????????????????????????????????????? | | | | | | | | | | | | | | | | | | | | | | | | | | | | | | | +----------------------------------------------------+ Best States ------------- Heat Dissipation 25 Energy Generation 14 Energy Capacity 250 Matter Stores 300 Matter Capacity 300 Sight Range 16 Terrain Scan Density 10 Evasion (%) 55 Targeting Accuracy 5 Item Schematics ----------------- None Robot Schematics ------------------ None Fabricated ------------ Nothing Alien Tech Used ----------------- None Achievements -------------- None Challenges ------------ None Game ------ Seed BiocellAntimatterCloak Manual? 0 Play Time 00:12:58 Cumulative 23.0 hours Start 2024.12.21 @ 20:40:42 End 2024.12.21 @ 20:50:44 Sessions 1 Manual Loads 0 Difficulty Rogue Special Mode None Game No. 39 Rogue 36 Adventurer 3 Explorer 0 Win Type - Total 0 Types 0/0/0/0/0/0/0/0/0 Lore% 9 Gallery% 19 Achievement% 16 Wizard Run 0 Options --------- Layout 1 ASCII 0 Keyboard 1 Movement Numpad Keybinds 0 Fullscreen 1 Font 24/Smallcaps Map View 50x35 Zoom Use 0% Tactical HUD 1 Map Filters NONE Filters NONE Steam 1 RUN: 01b20e14-fe5c-4a0c-b69c-e7b939a770de